bitfinex/quotes_SOLUSD_20250101
["timestamp","ask_amount","ask_price","bid_price","bid_amount"]
[1735742285812,20.0,190.4,190.32,6.1591]
[1735742286208,2.6261,190.39,190.32,6.1591]
[1735742287423,22.6261,190.39,190.32,6.1591]
[1735742288621,2.6264,190.37,190.32,6.1591]
[1735742289726,26.07922558,190.39,190.32,6.1591]
[1735742294044,6.07922558,190.39,190.33,23.776884]
[1735742294236,8.13925504,190.4,190.34,1.6647]
[1735742295054,14.21848062,190.4,190.34,1.6647]
[1735742295223,6.07922558,190.4,190.34,1.6647]
[1735742296044,8.13925504,190.39,190.34,1.6647]
[1735742297941,8.13925504,190.38,190.34,1.6647]
[1735742298647,8.13925504,190.39,190.34,1.6647]
[1735742300654,8.13925504,190.38,190.34,1.6647]
[1735742301957,8.13925504,190.41,190.34,1.6647]
[1735742304049,19.84665274,190.43,190.34,1.6647]
[1735742304050,8.13925504,190.42,190.34,1.6647]
[1735742304567,8.13925504,190.41,190.34,1.6647]
[1735742305076,14.21848062,190.41,190.34,1.6647]
[1735742305882,36.07922558,190.4,190.34,1.6647]
[1735742306038,14.21848062,190.4,190.34,1.6647]
[1735742306453,16.84448062,190.4,190.34,1.6647]
[1735742307143,14.21848062,190.4,190.34,1.6647]
[1735742310347,8.13925504,190.4,190.34,1.6647]
[1735742310848,8.13925504,190.41,190.34,1.6647]
[1735742311249,48.83553025,190.43,190.34,1.6647]
[1735742311250,8.13925504,190.42,190.35,6.0397]
[1735742312076,8.13925504,190.42,190.36,23.776884]
[1735742312262,8.13925504,190.42,190.37,1.6352]
[1735742312894,6.07922558,190.44,190.37,1.6352]
[1735742313550,14.21848062,190.44,190.37,1.6352]
[1735742313755,6.07922558,190.44,190.37,1.6352]
[1735742314367,14.21848062,190.44,190.37,1.6352]
[1735742314978,6.07922558,190.44,190.37,1.6352]
[1735742322293,14.21848062,190.44,190.37,1.6352]
[1735742323895,2.6256,190.43,190.37,1.6352]
[1735742324196,6.07922558,190.42,190.37,1.6352]
[1735742329090,30.0,190.41,190.37,1.6352]
[1735742330301,38.13925504,190.41,190.37,1.6352]
[1735742330495,30.0,190.39,190.35,6.0397]
[1735742330998,20.0,190.39,190.35,6.0397]
[1735742331309,14.21848062,190.41,190.35,6.0397]
[1735742331589,8.13925504,190.4,190.35,6.0397]
[1735742332181,6.07922558,190.41,190.35,6.0397]
[1735742333287,8.13925504,190.42,190.36,1.5727]
[1735742334401,8.13925504,190.43,190.36,1.5727]
[1735742338919,14.21848062,190.43,190.36,1.5727]
[1735742339716,8.13925504,190.42,190.36,1.5727]
[1735742341301,8.13925504,190.41,190.36,1.5727]
[1735742344528,2.626,190.4,190.36,1.5727]
[1735742344735,16.84448062,190.4,190.36,1.5727]
[1735742345502,8.13925504,190.39,190.36,1.5727]
[1735742348738,8.13925504,190.39,190.35,6.0397]
[1735742352141,8.13925504,190.41,190.36,1.5371]
[1735742353711,8.13925504,190.42,190.36,1.5371]
[1735742356415,8.13925504,190.42,190.37,6.3423]
[1735742356750,14.21848062,190.45,190.37,6.3423]
[1735742357117,6.07922558,190.45,190.37,6.3423]
[1735742358529,14.21848062,190.45,190.37,6.3423]
[1735742359056,6.07922558,190.45,190.37,6.3423]
[1735742361957,6.07922558,190.45,190.38,23.776884]
[1735742365569,6.07922558,190.45,190.37,6.3423]
[1735742368066,10.76445504,190.47,190.37,6.3423]
[1735742368255,16.84368062,190.47,190.37,6.3423]
[1735742369051,6.07922558,190.46,190.37,6.3423]
[1735742369252,2.6253,190.45,190.37,6.3423]
[1735742372783,8.85600625,190.45,190.37,6.3423]
[1735742374975,44.93523183,190.45,190.37,6.3423]
[1735742375178,12.30993183,190.44,190.37,6.3423]
[1735742375749,20.0,190.4,190.37,6.3423]
[1735742377274,8.13925504,190.41,190.37,6.3423]
[1735742378164,10.76495504,190.42,190.37,6.3423]
[1735742378474,16.99566129,190.42,190.37,6.3423]
[1735742379777,6.23070625,190.41,190.37,6.3423]
[1735742396610,14.21848062,190.44,190.37,6.3423]
[1735742396782,6.23070625,190.43,190.37,6.3423]
[1735742398791,42.30993183,190.43,190.37,6.3423]
[1735742399205,50.44918687,190.43,190.37,6.3423]
[1735742402385,8.13925504,190.42,190.37,6.3423]
[1735742403095,20.44918687,190.43,190.37,6.3423]
[1735742403297,8.13925504,190.43,190.39,12.22339793]
[1735742403629,8.13925504,190.43,190.4,6.493]
[1735742403923,8.13925504,190.46,190.4,6.493]
[1735742404421,8.13925504,190.47,190.4,6.493]
[1735742405299,14.36996129,190.48,190.4,6.493]
[1735742407161,6.07922558,190.47,190.4,6.493]
[1735742407729,6.23070625,190.46,190.4,6.493]
[1735742409638,14.36996129,190.46,190.4,6.493]
[1735742410259,6.23070625,190.46,190.4,6.493]
[1735742412946,6.23070625,190.46,190.41,23.776884]
[1735742413153,6.07922558,190.47,190.4,17.13649793]
[1735742413154,8.13925504,190.49,190.45,12.28339793]
[1735742413943,38.13925504,190.55,190.45,12.28339793]
[1735742414768,30.0,190.55,190.45,12.28339793]
[1735742417152,30.0,190.55,190.45,1.6399]
[1735742417768,30.0,190.55,190.45,12.28339793]
[1735742418075,14.18699941,190.57,190.49,8.1878]
[1735742419271,38.67144437,190.57,190.49,8.1878]
[1735742419477,30.0,190.55,190.49,8.1878]
[1735742420266,30.0,190.53,190.49,8.1878]
[1735742421362,32.6242,190.53,190.49,8.1878]
[1735742421560,32.6242,190.53,190.49,1.6399]
[1735742421758,30.0,190.5,190.45,6.5479]
[1735742422159,20.0,190.47,190.45,6.5479]
[1735742422359,30.0,190.48,190.44,1.5928]
[1735742423060,10.81205997,190.53,190.41,6.6554]
[1735742423061,30.0,190.46,190.41,6.6554]
[1735742423379,8.13925504,190.54,190.51,1.5928]
[1735742423761,16.27851008,190.52,190.51,1.5928]
[1735742423971,14.61191008,190.52,190.51,25.369684]
[1735742424184,11.27871008,190.52,190.51,25.369684]
[1735742424684,11.27871008,190.52,190.51,36.01318193]
[1735742424985,30.0,190.64,190.51,36.01318193]
[1735742425670,30.0,190.64,190.51,25.369684]
[1735742426169,20.0,190.61,190.51,1.5928]
[1735742427472,30.0,190.6,190.51,1.5928]
[1735742427680,20.0,190.57,190.5,6.6554]
[1735742428072,19.5,190.57,190.5,6.6554]
[1735742431187,20.0,190.55,190.5,6.6554]
[1735742431490,20.0,190.53,190.47,1.5928]
[1735742432696,20.0,190.56,190.47,1.5928]
[1735742433691,1.3,190.59,190.49,23.776884]
[1735742433865,2.6232,190.61,190.5,10.64349793]
[1735742434065,30.0,190.63,190.51,17.29889793]
[1735742434282,30.0,190.63,190.52,10.64349793]
[1735742434490,20.0,190.6,190.52,10.64349793]
[1735742434987,32.6227,190.65,190.52,10.64349793]
[1735742435188,32.6227,190.65,190.53,10.64349793]
[1735742435695,20.0,190.62,190.52,10.64349793]
[1735742437293,20.0,190.64,190.53,10.64349793]
[1735742438197,50.0,190.64,190.53,10.64349793]
[1735742438371,50.0,190.64,190.52,10.64349793]
[1735742440193,50.0,190.64,190.51,6.6554]
[1735742440194,2.6228,190.63,190.51,6.6554]
[1735742440774,30.0,190.62,190.51,6.6554]
[1735742442489,2.6231,190.61,190.51,6.6554]
[1735742443383,20.0,190.63,190.53,1.5177]
[1735742445681,2.6227,190.64,190.53,1.5177]
[1735742446605,2.6227,190.64,190.53,12.16119793]
[1735742446790,2.6227,190.64,190.54,10.64349793]
[1735742448124,2.6227,190.64,190.55,10.64349793]
[1735742448290,20.0,190.66,190.55,10.64349793]
[1735742449124,20.0,190.64,190.55,10.64349793]
[1735742449507,2.6223,190.67,190.55,10.64349793]
[1735742449708,3.9219,190.7,190.57,10.64349793]
[1735742449895,2.6219,190.7,190.57,10.64349793]
[1735742450710,20.0,190.68,190.57,10.64349793]
[1735742451927,20.0,190.68,190.56,10.64349793]
[1735742452715,20.0,190.66,190.55,10.64349793]
[1735742452939,20.0,190.66,190.54,6.94950369]
[1735742452940,20.0,190.64,190.54,6.1626]
[1735742453820,20.0,190.64,190.54,29.939484]
[1735742454733,20.0,190.64,190.54,6.1626]
[1735742456215,20.0,190.6,190.54,6.1626]
[1735742456906,20.0,190.58,190.54,6.1626]
[1735742457110,20.0,190.58,190.49,6.4841]
[1735742457347,20.0,190.56,190.49,6.4841]
[1735742457638,20.0,190.54,190.49,6.4841]
[1735742458740,2.624,190.55,190.49,6.4841]
[1735742465339,20.0,190.54,190.49,6.4841]
[1735742466047,2.6235,190.58,190.49,6.4841]
[1735742466252,2.6231,190.61,190.5,16.60174216]
[1735742466431,2.6231,190.61,190.5,18.10344216]
[1735742466633,20.0,190.6,190.5,18.10344216]
[1735742466961,20.0,190.6,190.5,1.5017]
[1735742467243,2.6231,190.61,190.5,1.5017]
[1735742467545,20.0,190.6,190.5,1.5017]
[1735742468618,20.0,190.6,190.5,18.10344216]
[1735742469253,2.6231,190.61,190.5,18.10344216]
[1735742469853,22.6231,190.61,190.5,18.10344216]
[1735742470617,22.6231,190.61,190.51,40.37862616]
[1735742471013,2.6227,190.64,190.53,16.60174216]
[1735742471236,2.6227,190.64,190.54,6.4882]
[1735742471434,22.6227,190.64,190.54,6.4882]
[1735742471639,2.6223,190.68,190.56,16.60174216]
[1735742471836,2.6223,190.68,190.57,1.5608]
[1735742472023,20.0,190.66,190.57,1.5608]
[1735742472555,20.0,190.67,190.57,1.5608]
[1735742472853,30.0,190.71,190.59,6.4882]
[1735742473353,20.0,190.68,190.59,6.4882]
[1735742476150,20.0,190.68,190.59,23.08994216]
[1735742477042,20.0,190.68,190.59,6.4882]
[1735742479561,20.0,190.66,190.59,6.4882]
[1735742480370,20.0,190.68,190.59,6.4882]
[1735742482465,20.0,190.64,190.59,6.4882]
[1735742488973,6.06572759,190.67,190.59,6.4882]
[1735742491373,20.0,190.64,190.59,6.4882]
[1735742492335,20.0,190.63,190.59,6.4882]
[1735742492974,22.6227,190.64,190.59,6.4882]
[1735742494257,20.0,190.64,190.59,6.4882]
[1735742502489,26.06572759,190.64,190.59,6.4882]
[1735742504057,26.06572759,190.64,190.6,23.776884]
[1735742504280,2.622,190.7,190.59,6.4882]
[1735742504281,8.68772759,190.7,190.59,6.4882]
[1735742504986,20.0,190.67,190.59,6.4882]
[1735742505177,8.68772759,190.7,190.59,6.4882]
[1735742505692,20.0,190.66,190.59,6.4882]
[1735742505874,26.06572759,190.66,190.59,6.4882]
[1735742506770,28.68812759,190.66,190.59,6.4882]
[1735742512998,58.68812759,190.66,190.59,6.4882]
[1735742514308,20.0,190.62,190.57,1.5608]
[1735742522198,6.06572759,190.65,190.57,1.5608]
[1735742523407,6.06572759,190.65,190.58,1.53284603]
[1735742524110,6.06572759,190.65,190.57,1.5608]
[1735742524484,6.06572759,190.65,190.58,23.776884]
[1735742525381,6.06572759,190.65,190.57,1.5608]
[1735742525905,6.06572759,190.65,190.58,1.53343476]
[1735742526897,6.06572759,190.65,190.57,1.5608]
[1735742528100,6.06572759,190.65,190.58,1.53247398]
[1735742528800,6.06572759,190.65,190.59,1.53247398]
[1735742529900,6.06572759,190.65,190.57,1.5608]
[1735742530409,6.06572759,190.65,190.58,1.5324463]
[1735742531299,6.06572759,190.65,190.59,1.5324463]
[1735742532024,6.06572759,190.65,190.57,1.5608]
[1735742532511,6.06572759,190.65,190.58,1.53215596]
[1735742532984,6.06572759,190.65,190.59,1.53215596]
[1735742533619,6.06572759,190.65,190.57,1.5608]
[1735742534186,6.06572759,190.65,190.58,1.5313586]
[1735742535184,6.06572759,190.65,190.59,1.5313586]
[1735742535785,6.06572759,190.65,190.57,1.5608]
[1735742536407,6.06572759,190.65,190.58,1.53135878]
[1735742537207,6.06572759,190.65,190.59,1.53135878]
[1735742537782,6.06572759,190.65,190.57,1.5608]
[1735742538432,6.06572759,190.65,190.58,1.53141433]
[1735742539197,6.06572759,190.65,190.59,1.53141433]
[1735742539994,6.06572759,190.65,190.57,1.5608]
[1735742540817,6.06572759,190.65,190.58,1.53211711]
[1735742541328,2.622,190.69,190.6,6.5693]
[1735742541998,2.622,190.69,190.61,1.53211711]
[1735742542827,2.622,190.69,190.6,6.5693]
[1735742544216,2.622,190.69,190.61,1.5317702]
[1735742544812,6.06572759,190.7,190.61,1.5317702]
[1735742545017,6.06572759,190.7,190.63,1.5127]
[1735742547328,8.68772759,190.7,190.63,1.5127]
[1735742547625,20.0,190.67,190.63,1.5127]
[1735742547927,20.0,190.66,190.6,6.5693]
[1735742551732,26.06572759,190.65,190.6,6.5693]
[1735742553544,28.68832759,190.65,190.6,6.5693]
[1735742567568,26.06572759,190.65,190.6,6.5693]
[1735742580702,2.6227,190.64,190.55,6.2099]
[1735742581078,26.06572759,190.65,190.56,1.53209652]
[1735742581804,26.06572759,190.65,190.57,1.53209652]
[1735742582398,26.06572759,190.65,190.55,6.2099]
[1735742582971,26.06572759,190.65,190.56,1.53200839]
[1735742583608,26.06572759,190.65,190.57,1.53200839]
[1735742584301,26.06572759,190.65,190.55,6.2099]
[1735742584874,26.06572759,190.65,190.56,25.30881466]
[1735742585678,26.06572759,190.65,190.57,1.53193066]
[1735742586212,6.06572759,190.65,190.57,1.53193066]
[1735742586508,2.6223,190.67,190.56,23.776884]
[1735742588073,2.6223,190.67,190.57,1.53214049]
[1735742588609,2.6223,190.67,190.58,1.53214049]
[1735742589277,2.6223,190.67,190.55,6.2099]
[1735742589497,20.0,190.64,190.55,6.2099]
[1735742589882,20.0,190.65,190.56,1.53188063]
[1735742590577,20.0,190.65,190.55,6.2099]
[1735742592383,20.0,190.65,190.56,1.53317594]
[1735742593212,20.0,190.65,190.57,1.53317594]
[1735742593908,20.0,190.65,190.58,1.53317594]
[1735742594479,20.0,190.65,190.55,6.2099]
[1735742595373,20.0,190.65,190.56,3.98958677]
[1735742596011,20.0,190.65,190.57,1.53430833]
[1735742596391,2.6227,190.64,190.57,1.53430833]
[1735742596586,4.1351,190.64,190.57,1.53430833]
[1735742596784,4.1351,190.64,190.55,6.2099]
[1735742598011,20.0,190.6,190.51,6.0449]
[1735742598182,20.0,190.58,190.51,6.0449]
[1735742598388,20.0,190.56,190.51,6.0449]
[1735742598587,20.0,190.56,190.48,1.5406]
[1735742599011,20.0,190.57,190.48,1.5406]
[1735742599393,22.6234,190.59,190.49,1.53389169]
[1735742599599,20.0,190.59,190.5,6.0449]
[1735742600178,20.0,190.6,190.5,6.0449]
[1735742601010,2.6229,190.63,190.5,6.0449]
[1735742601721,20.0,190.61,190.5,6.0449]
[1735742601925,20.0,190.61,190.51,1.53238099]
[1735742602693,20.0,190.61,190.52,1.53238099]
[1735742603421,20.0,190.61,190.5,6.0449]
[1735742604017,20.0,190.61,190.51,1.53130285]
[1735742604618,20.0,190.61,190.5,6.0449]
[1735742605222,20.0,190.62,190.5,6.0449]
[1735742606589,20.0,190.62,190.51,23.776884]
[1735742606785,20.0,190.62,190.52,1.5355]
[1735742606985,2.6229,190.63,190.52,1.5355]
[1735742607303,20.0,190.62,190.52,1.5355]
[1735742607502,20.0,190.6,190.52,1.5355]
[1735742610311,20.0,190.62,190.52,1.5355]
[1735742611011,2.6229,190.63,190.52,1.5355]
[1735742611822,22.6229,190.63,190.52,1.5355]
[1735742612725,20.0,190.61,190.52,1.5355]
[1735742613238,22.6229,190.63,190.52,1.5355]
[1735742617023,20.0,190.61,190.52,1.5355]
[1735742617434,20.0,190.57,190.52,1.5355]
[1735742617618,20.0,190.57,190.5,6.0449]
[1735742619528,20.0,190.55,190.5,6.0449]
[1735742620812,52.6243,190.53,190.45,6.1419]
[1735742622394,22.6243,190.53,190.45,6.1419]
[1735742622618,2.6243,190.53,190.45,6.1419]
[1735742623104,21.3,190.54,190.45,6.1419]
[1735742626211,20.0,190.54,190.45,6.1419]
[1735742626724,22.6241,190.54,190.45,6.1419]
[1735742629839,20.0,190.54,190.45,6.1419]
[1735742630839,22.6241,190.54,190.45,6.1419]
[1735742631838,30.0,190.53,190.45,6.1419]
[1735742632015,22.6241,190.54,190.45,6.1419]
[1735742633847,21.3,190.56,190.45,6.1419]
[1735742634015,20.0,190.56,190.47,1.5923]
[1735742634526,22.6237,190.57,190.47,1.5923]
[1735742634934,20.0,190.56,190.47,1.5923]
[1735742640343,2.6239,190.55,190.47,1.5923]
[1735742640544,2.6239,190.55,190.45,6.1419]
[1735742640716,20.0,190.5,190.45,6.1419]
[1735742643337,2.6245,190.51,190.45,6.1419]
[1735742643526,1.3,190.53,190.45,6.1419]
[1735742643733,30.0,190.56,190.45,6.1419]
[1735742643925,3.9237,190.57,190.45,6.1419]
[1735742644848,20.0,190.55,190.45,6.1419]
[1735742649332,20.0,190.53,190.45,6.1419]
[1735742649543,30.0,190.54,190.45,6.1419]
[1735742650029,20.0,190.51,190.45,6.1419]
[1735742653050,20.0,190.47,190.42,1.5923]
[1735742653256,20.0,190.47,190.4,6.3192]
[1735742653458,30.0,190.46,190.4,6.3192]
[1735742653626,20.0,190.45,190.4,6.3192]
[1735742654033,30.0,190.44,190.37,1.619]
[1735742654358,20.0,190.45,190.37,1.619]
[1735742654540,22.6254,190.45,190.37,1.619]
[1735742656440,20.0,190.43,190.37,1.619]
[1735742658131,20.0,190.41,190.37,1.619]
[1735742659730,20.0,190.41,190.36,6.3192]
[1735742660955,6.06572759,190.44,190.36,6.3192]
[1735742662961,7.56298579,190.49,190.38,1.635]
[1735742663665,6.06572759,190.48,190.38,1.635]
[1735742666253,6.06572759,190.48,190.4,23.776884]
[1735742666462,8.69002759,190.53,190.4,34.39019535]
[1735742667230,8.69002759,190.53,190.42,23.776884]
[1735742667657,6.06572759,190.52,190.42,23.776884]
[1735742668046,6.06572759,190.52,190.41,6.2761]
[1735742671661,6.06572759,190.52,190.42,1.635]
[1735742688476,2.6245,190.51,190.42,1.635]
[1735742688777,20.0,190.48,190.42,1.635]
[1735742688959,20.0,190.47,190.42,1.635]
[1735742692269,6.06572759,190.5,190.43,23.776884]
[1735742692462,8.28343779,190.54,190.43,23.776884]
[1735742692870,20.0,190.51,190.43,23.776884]
[1735742693658,20.0,190.51,190.42,1.635]
[1735742695988,6.06572759,190.53,190.43,23.776884]
[1735742700896,2.6243,190.52,190.42,1.635]
[1735742701195,20.0,190.49,190.42,1.635]
[1735742702715,6.06572759,190.52,190.43,23.776884]
[1735742704290,6.06572759,190.52,190.44,6.2465]
[1735742712819,20.0,190.49,190.44,6.2465]
[1735742718411,20.0,190.48,190.39,6.2298]
[1735742719123,20.0,190.46,190.39,6.2298]
[1735742720037,20.0,190.44,190.37,1.6077]
[1735742720416,20.0,190.42,190.34,6.2298]
[1735742721130,20.0,190.4,190.34,6.2298]
[1735742722634,20.0,190.4,190.3,6.5298]
[1735742723331,20.0,190.38,190.3,6.5298]
[1735742724134,20.0,190.36,190.3,6.5298]
[1735742724571,20.0,190.34,190.3,6.5298]
[1735742724856,20.0,190.34,190.25,7.75273845]
[1735742725729,20.0,190.34,190.25,6.2243]
[1735742727261,50.0,190.34,190.25,6.2243]
[1735742729348,2.627,190.33,190.2,6.2243]
[1735742729560,20.0,190.28,190.2,6.2243]
[1735742730347,20.0,190.29,190.2,6.2243]
[1735742730833,20.0,190.29,190.21,23.776884]
[1735742731762,5.12167702,190.32,190.21,34.39019535]
[1735742732071,1.6314,190.35,190.23,23.776884]
[1735742732466,5.12167702,190.37,190.28,5.0]
[1735742732754,1.6314,190.43,190.31,10.61331135]
[1735742732955,1.6314,190.43,190.32,23.776884]
[1735742733255,1.6314,190.43,190.32,34.39019535]
[1735742733451,20.0,190.41,190.32,34.39019535]
[1735742733956,20.0,190.41,190.32,23.776884]
[1735742734352,20.0,190.41,190.31,23.776884]
[1735742736365,20.0,190.39,190.28,11.40125705]
[1735742737643,20.0,190.39,190.29,23.776884]
[1735742738661,20.0,190.39,190.28,23.776884]
[1735742738869,20.0,190.37,190.26,10.61331135]
[1735742739036,20.0,190.37,190.26,23.776884]
[1735742739766,20.0,190.37,190.25,6.2243]
[1735742740072,20.0,190.33,190.25,6.2243]
[1735742743874,1.6314,190.34,190.26,23.776884]
[1735742744045,1.3,190.38,190.28,16.63911582]
[1735742744381,1.6314,190.39,190.31,40.41599982]
[1735742744672,21.6314,190.39,190.31,40.41599982]
[1735742745468,22.6258,190.42,190.31,40.41599982]
[1735742745671,22.6258,190.42,190.32,16.63911582]
[1735742746173,2.6258,190.42,190.32,16.63911582]
[1735742747145,2.6258,190.42,190.31,16.63911582]
[1735742747146,22.6258,190.42,190.31,16.63911582]
[1735742747343,22.6258,190.42,190.32,23.776884]
[1735742749274,2.6258,190.42,190.32,23.776884]
[1735742749773,20.0,190.43,190.32,23.776884]
[1735742749942,20.0,190.43,190.33,23.776884]
[1735742750270,20.0,190.43,190.33,41.20382219]
[1735742751084,20.0,190.43,190.32,16.63911582]
[1735742752467,20.0,190.43,190.33,23.776884]
[1735742752974,20.0,190.43,190.33,40.41599982]
[1735742753156,1.6314,190.44,190.37,23.776884]
[1735742754581,1.6512,190.5,190.37,16.63911582]
[1735742755159,20.0,190.48,190.37,16.63911582]
[1735742755480,20.0,190.48,190.38,40.41599982]
[1735742755799,20.0,190.48,190.4,23.776884]
[1735742756153,1.6512,190.5,190.4,40.41599982]
[1735742756350,1.6512,190.5,190.4,16.63911582]
[1735742756788,20.0,190.48,190.42,23.776884]
[1735742757371,1.6512,190.5,190.42,23.776884]
[1735742757554,1.6512,190.5,190.4,17.42663241]
[1735742758073,1.6512,190.5,190.41,23.776884]
[1735742759291,1.6512,190.5,190.38,16.63911582]
[1735742759583,1.6512,190.5,190.39,40.41599982]
[1735742759790,1.6512,190.5,190.39,41.20354954]
[1735742759954,1.6512,190.5,190.41,23.776884]
[1735742760291,1.6512,190.5,190.41,16.63911582]
[1735742760590,1.6512,190.5,190.4,16.63911582]
[1735742761762,1.6512,190.5,190.39,16.63911582]
[1735742762374,1.6512,190.5,190.4,17.42664499]
[1735742762890,1.6512,190.5,190.39,16.63911582]
[1735742763466,1.6512,190.5,190.4,16.63911582]
[1735742763877,1.6512,190.5,190.42,23.776884]
[1735742764284,1.6512,190.5,190.42,34.40341444]
[1735742764600,1.6512,190.5,190.44,23.776884]
[1735742765469,20.0,190.53,190.44,23.776884]
[1735742767797,20.0,190.53,190.42,40.37846567]
[1735742768000,20.0,190.53,190.44,23.776884]
[1735742772103,1.6512,190.54,190.44,23.776884]
[1735742772285,1.6512,190.54,190.46,23.776884]
[1735742772485,1.6512,190.54,190.48,23.776884]
[1735742773080,1.6512,190.54,190.46,23.776884]
[1735742773506,1.6512,190.54,190.46,16.60158167]
[1735742775501,1.6512,190.54,190.48,23.776884]
[1735742775877,1.6512,190.54,190.5,23.776884]
[1735742776083,1.6512,190.54,190.49,23.776884]
[1735742776884,1.6512,190.54,190.48,23.776884]
[1735742777082,1.6512,190.54,190.46,16.60158167]
[1735742777411,1.6512,190.54,190.47,40.37846567]
[1735742778315,1.6512,190.54,190.48,17.38882122]
[1735742780613,1.6512,190.54,190.5,23.776884]
[1735742780915,21.6285,190.58,190.5,41.1655947]
[1735742781595,21.6285,190.58,190.48,16.60158167]
[1735742782307,21.6285,190.58,190.47,0.7871308]
[1735742782513,21.6285,190.58,190.45,16.60158167]
[1735742783419,20.0,190.56,190.44,16.60158167]
[1735742783589,26.255,190.54,190.43,1.51043434]
[1735742783792,26.255,190.54,190.44,23.776884]
[1735742784411,26.255,190.54,190.44,16.60158167]
[1735742784630,26.255,190.54,190.47,23.776884]
[1735742784836,1.6265,190.55,190.47,40.37846567]
[1735742786044,1.6265,190.55,190.49,23.776884]
[1735742786723,1.6265,190.55,190.49,40.37846567]
[1735742786921,1.6265,190.55,190.51,40.37846567]
[1735742788025,1.6265,190.55,190.51,23.776884]
[1735742788347,1.6265,190.55,190.48,16.60158167]
[1735742788832,1.6265,190.55,190.49,23.776884]
[1735742794235,1.6265,190.55,190.48,34.39691521]
[1735742800038,1.6265,190.55,190.51,23.776884]
[1735742800849,1.6265,190.55,190.49,0.78720884]
[1735742801053,1.6265,190.55,190.5,23.776884]
[1735742801264,1.6265,190.55,190.49,23.776884]
[1735742803931,1.6265,190.55,190.49,10.62003121]
[1735742805057,1.6265,190.55,190.49,11.40720649]
[1735742805963,1.6265,190.55,190.51,34.39691521]
[1735742806145,1.6265,190.55,190.52,10.62003121]
[1735742806345,2.6227,190.64,190.53,23.776884]
[1735742806346,1.617,190.63,190.53,23.776884]
[1735742806554,20.0,190.61,190.53,34.39691521]
[1735742806743,20.0,190.61,190.55,23.776884]
[1735742807254,20.0,190.61,190.53,11.40705986]
[1735742808162,20.0,190.61,190.53,10.62003121]
[1735742808358,20.0,190.61,190.55,23.776884]
[1735742809057,20.0,190.61,190.53,10.62003121]
[1735742809865,20.0,190.61,190.54,23.776884]
[1735742810235,20.0,190.61,190.54,25.30016293]
[1735742810962,20.0,190.61,190.54,23.776884]
[1735742813336,20.0,190.61,190.56,23.776884]
[1735742814360,20.0,190.61,190.54,23.776884]
[1735742814768,20.0,190.61,190.52,23.776884]
[1735742815437,20.0,190.61,190.52,34.39691521]
[1735742815954,1.617,190.63,190.54,34.39691521]
[1735742816157,1.617,190.63,190.56,23.776884]
[1735742816667,1.617,190.63,190.51,23.74203121]
[1735742816869,1.617,190.63,190.52,23.776884]
[1735742817058,1.617,190.63,190.52,35.18394972]
[1735742817261,1.617,190.63,190.54,23.776884]
[1735742817942,1.617,190.63,190.53,23.776884]
[1735742820269,1.617,190.63,190.55,23.776884]
[1735742822050,1.617,190.63,190.59,23.776884]
[1735742822260,1.5378,190.68,190.59,34.39691521]
[1735742822466,1.5378,190.68,190.61,34.39691521]
[1735742822650,1.5378,190.68,190.61,23.776884]
[1735742822971,1.5378,190.68,190.66,23.776884]
[1735742823184,1.5378,190.74,190.66,23.776884]
[1735742823480,1.5378,190.74,190.66,34.39691521]
[1735742823639,1.5378,190.74,190.68,23.776884]
[1735742824079,1.5378,190.74,190.68,34.39691521]
[1735742824383,1.5378,190.74,190.7,23.776884]
[1735742825053,7.8247,190.8,190.7,34.39691521]
[1735742825252,7.8247,190.8,190.74,23.776884]